bitfinex/quotes_SOLUSD_20241111
["timestamp","ask_amount","ask_price","bid_price","bid_amount"]
[1731363741062,20.0,217.85,217.63,0.2]
[1731363741367,3.29067338,217.84,217.63,0.2]
[1731363741561,20.0,217.86,217.63,0.2]
[1731363741769,3.28304122,217.85,217.63,0.2]
[1731363741981,3.28304122,217.84,217.67,0.1]
[1731363742182,20.0,217.86,217.65,0.1]
[1731363743077,20.0,217.86,217.63,0.1]
[1731363743593,20.0,217.84,217.6,20.1]
[1731363743905,20.0,217.84,217.62,20.0]
[1731363744492,20.0,217.84,217.63,0.1]
[1731363744674,20.0,217.86,217.64,36.0277509]
[1731363745278,20.0,217.86,217.63,0.1]
[1731363745580,20.0,217.86,217.64,36.0277509]
[1731363745763,20.0,217.86,217.62,36.1277509]
[1731363746572,20.0,217.86,217.62,36.2277509]
[1731363747081,20.0,217.86,217.64,0.1]
[1731363747272,20.0,217.86,217.64,0.3]
[1731363747875,6.0861,217.87,217.64,0.3]
[1731363747876,20.0,217.84,217.64,0.2]
[1731363748775,20.0,217.84,217.64,36.0277509]
[1731363749383,20.0,217.84,217.66,0.1]
[1731363750666,20.0,217.84,217.65,4.76192484]
[1731363750872,20.0,217.84,217.64,0.1]
[1731363751066,20.0,217.84,217.66,0.1]
[1731363751283,20.0,217.84,217.62,36.1277509]
[1731363751284,20.0,217.84,217.62,36.2277509]
[1731363751476,20.0,217.84,217.62,36.0277509]
[1731363752079,20.0,217.82,217.6,36.0277509]
[1731363752569,20.0,217.84,217.62,0.1]
[1731363752887,43.776884,217.84,217.62,0.1]
[1731363753669,43.776884,217.84,217.6,36.0277509]
[1731363753994,23.776884,217.8,217.58,36.0277509]
[1731363754285,20.0,217.75,217.56,36.0277509]
[1731363754473,20.0,217.75,217.56,36.1277509]
[1731363754881,13.63845402,217.75,217.65,36.0277509]
[1731363755083,15.3757,217.95,217.74,36.0277509]
[1731363755791,16.52283908,217.95,217.74,36.0277509]
[1731363756089,15.3757,217.95,217.74,36.0277509]
[1731363756294,1.14726248,217.94,217.74,36.0277509]
[1731363756587,1.14726248,217.94,217.72,36.0277509]
[1731363756993,21.14726248,217.94,217.74,36.0277509]
[1731363757171,20.0,217.92,217.74,36.0277509]
[1731363757475,20.0,217.89,217.74,36.0277509]
[1731363757685,20.0,217.85,217.74,36.0277509]
[1731363758185,6.5921,217.96,217.77,36.0277509]
[1731363758389,16.52302395,217.95,217.65,0.1]
[1731363758597,16.52302395,217.95,217.59,27.52]
[1731363758598,15.3757,217.95,217.79,36.0277509]
[1731363759175,20.0,217.94,217.79,36.0277509]
[1731363759483,20.0,217.92,217.79,36.0277509]
[1731363759675,20.0,217.9,217.77,36.0277509]
[1731363760381,20.0,217.9,217.68,20.0]
[1731363760583,20.0,217.9,217.77,36.0277509]
[1731363761576,20.0,217.9,217.64,0.3]
[1731363761577,20.0,217.86,217.59,0.2]
[1731363761778,23.776884,217.8,217.66,36.0277509]
[1731363761987,20.0,217.79,217.66,36.0277509]
[1731363763392,20.0,217.86,217.71,36.0277509]
[1731363763585,20.0,217.84,217.71,36.0277509]
[1731363763778,20.0,217.84,217.69,36.0277509]
[1731363764169,23.776884,217.83,217.69,36.0277509]
[1731363764496,20.0,217.82,217.69,36.0277509]
[1731363764871,20.0,217.82,217.71,36.0277509]
[1731363765184,23.776884,217.85,217.71,36.0277509]
[1731363765577,20.0,217.84,217.71,36.0277509]
[1731363765772,23.776884,217.86,217.71,36.0277509]
[1731363767693,23.776884,217.86,217.73,36.0277509]
[1731363768215,22.6568,217.87,217.73,36.0277509]
[1731363769594,22.6568,217.87,217.77,36.0277509]
[1731363770094,22.6568,217.87,217.75,36.0277509]
[1731363770691,22.6568,217.87,217.77,36.0277509]
[1731363770881,22.6568,217.87,217.74,36.0277509]
[1731363771085,22.6568,217.87,217.76,36.0277509]
[1731363775182,22.6568,217.87,217.74,36.0277509]
[1731363776301,22.6568,217.87,217.72,36.0277509]
[1731363776682,22.6568,217.87,217.74,36.0277509]
[1731363777598,22.6568,217.87,217.72,36.0277509]
[1731363778182,3.3258476,217.86,217.72,36.0277509]
[1731363778377,3.3258476,217.86,217.74,36.0277509]
[1731363778583,22.6568,217.87,217.72,36.0277509]
[1731363778584,3.3258476,217.85,217.72,36.0277509]
[1731363778794,3.3258476,217.84,217.72,36.0277509]
[1731363779502,8.66200189,217.84,217.72,36.0277509]
[1731363780286,3.3258476,217.83,217.72,36.0277509]
[1731363780488,3.3258476,217.82,217.72,36.0277509]
[1731363780688,3.3258476,217.81,217.72,36.0277509]
[1731363780901,3.3258476,217.8,217.72,36.0277509]
[1731363781208,3.3258476,217.79,217.72,36.0277509]
[1731363781430,23.776884,217.86,217.72,36.0277509]
[1731363781704,3.35051775,217.85,217.72,36.0277509]
[1731363781893,8.71089478,217.85,217.72,36.0277509]
[1731363782088,3.35051775,217.84,217.72,36.0277509]
[1731363782403,3.35051775,217.83,217.72,36.0277509]
[1731363782602,3.35051775,217.82,217.72,36.0277509]
[1731363782815,3.35051775,217.81,217.71,22.22267768]
[1731363782992,3.35051775,217.8,217.64,20.0]
[1731363783192,3.35051775,217.79,217.72,22.22267768]
[1731363783401,5.36037703,217.85,217.64,20.0]
[1731363783402,3.35051775,217.78,217.7,22.22267768]
[1731363783699,5.36037703,217.85,217.7,22.22267768]
[1731363783892,3.3619931,217.84,217.75,22.22267768]
[1731363784099,3.3619931,217.83,217.75,22.22267768]
[1731363784304,3.36145454,217.82,217.75,22.22267768]
[1731363784503,5.37853814,217.86,217.75,22.22267768]
[1731363784708,3.36101815,217.85,217.75,22.22267768]
[1731363784903,3.36101815,217.84,217.75,22.22267768]
[1731363785210,3.36101815,217.83,217.75,22.22267768]
[1731363785411,3.36101815,217.82,217.68,22.22267768]
[1731363785615,3.36101815,217.81,217.68,22.22267768]
[1731363785792,3.36101815,217.8,217.7,22.22267768]
[1731363786114,3.36101815,217.79,217.7,22.22267768]
[1731363786292,3.36044211,217.78,217.6,22.59995611]
[1731363786620,5.37739086,217.83,217.6,20.2]
[1731363786806,3.36095996,217.82,217.61,22.49933568]
[1731363787011,5.37739086,217.83,217.7,22.22267768]
[1731363787012,3.36095996,217.81,217.7,22.22267768]
[1731363787193,3.36095996,217.8,217.62,22.68539459]
[1731363787498,3.36095996,217.79,217.66,22.22267768]
[1731363787697,3.36095996,217.78,217.66,22.22267768]
[1731363787895,23.776884,217.81,217.67,22.22267768]
[1731363788094,23.776884,217.79,217.57,22.36885798]
[1731363788295,8.73835082,217.78,217.67,22.22267768]
[1731363788511,3.36095996,217.77,217.61,22.49933568]
[1731363788696,3.36095996,217.77,217.67,22.22267768]
[1731363788896,3.36095996,217.76,217.58,22.5786812]
[1731363789097,3.36095996,217.75,217.67,22.22267768]
[1731363789311,3.36095996,217.75,217.63,22.78731611]
[1731363789518,3.36095996,217.74,217.68,22.22267768]
[1731363789704,23.776884,217.83,217.68,22.22267768]
[1731363789899,8.75019405,217.82,217.68,22.22267768]
[1731363790116,23.776884,217.8,217.67,22.22267768]
[1731363790300,8.75019405,217.79,217.67,22.22267768]
[1731363790494,8.75019405,217.78,217.67,22.22267768]
[1731363790803,8.75019405,217.77,217.67,22.22267768]
[1731363790999,3.36545925,217.76,217.6,22.59995611]
[1731363791217,3.36545925,217.75,217.7,22.22267768]
[1731363791518,6.53217899,217.86,217.7,22.22267768]
[1731363791718,3.36499923,217.85,217.7,22.22267768]
[1731363791901,3.36499923,217.84,217.7,22.22267768]
[1731363792107,3.36499923,217.83,217.7,22.22267768]
[1731363792306,3.36499923,217.82,217.7,22.22267768]
[1731363792512,3.36499923,217.81,217.7,22.22267768]
[1731363792695,3.36499923,217.8,217.68,22.22267768]
[1731363792911,3.36499923,217.79,217.68,22.22267768]
[1731363793105,5.38446517,217.83,217.68,22.22267768]
[1731363793310,8.75007029,217.83,217.68,22.22267768]
[1731363793613,3.36560512,217.83,217.72,22.22267768]
[1731363793799,3.36560512,217.82,217.72,22.22267768]
[1731363794000,3.36560512,217.81,217.72,22.22267768]
[1731363794202,5.38597774,217.86,217.72,22.22267768]
[1731363794514,3.3670599,217.85,217.72,22.22267768]
[1731363794711,3.3670599,217.84,217.72,22.22267768]
[1731363794922,3.3670599,217.83,217.76,22.22267768]
[1731363795103,5.38597774,217.86,217.76,22.22267768]
[1731363795301,5.38597774,217.86,217.69,22.22267768]
[1731363795302,3.36843568,217.85,217.74,22.22267768]
[1731363795502,3.36843568,217.84,217.74,22.22267768]
[1731363795726,22.6568,217.87,217.74,22.22267768]
[1731363796930,3.36886188,217.86,217.74,22.22267768]
[1731363797227,3.36886188,217.85,217.74,22.22267768]
[1731363797427,3.36886188,217.84,217.74,22.22267768]
[1731363797612,22.6568,217.87,217.74,22.22267768]
[1731363797919,3.36988533,217.86,217.72,22.22267768]
[1731363798111,8.76225461,217.86,217.72,22.22267768]
[1731363798313,3.36988533,217.85,217.72,22.22267768]
[1731363798505,3.36988533,217.84,217.74,22.22267768]
[1731363798703,3.36988533,217.83,217.74,22.22267768]
[1731363798902,5.39236928,217.86,217.74,22.22267768]
[1731363799120,3.37095954,217.85,217.74,22.22267768]
[1731363799308,5.39236928,217.86,217.74,22.22267768]
[1731363799309,3.37095954,217.84,217.74,22.22267768]
[1731363799513,3.37095954,217.83,217.74,22.22267768]
[1731363799817,3.37095954,217.82,217.74,22.22267768]
[1731363800005,3.37095954,217.81,217.74,22.22267768]
[1731363800316,3.37521139,217.8,217.74,22.22267768]
[1731363800524,5.39236928,217.86,217.74,22.22267768]
[1731363800722,3.37478133,217.85,217.74,22.22267768]
[1731363800921,3.37478133,217.84,217.74,22.22267768]
[1731363801223,3.37478133,217.83,217.76,22.22267768]
[1731363801420,22.6568,217.87,217.78,22.22267768]
[1731363801623,3.37506914,217.86,217.76,22.22267768]
[1731363801802,3.37506914,217.85,217.76,22.22267768]
[1731363802002,22.6568,217.87,217.76,22.22267768]
[1731363802206,3.37382695,217.86,217.76,22.22267768]
[1731363802420,3.37382695,217.85,217.76,22.22267768]
[1731363802615,3.37367008,217.84,217.72,22.22267768]
[1731363802905,3.37367008,217.83,217.73,20.0]
[1731363803101,22.6568,217.87,217.73,20.0]
[1731363803322,3.37277969,217.86,217.73,20.0]
[1731363803517,3.37277969,217.85,217.73,20.0]
[1731363803720,3.37277969,217.84,217.7,22.22267768]
[1731363803956,27.14966369,217.83,217.68,22.22267768]
[1731363804222,27.14966369,217.83,217.62,0.2]
[1731363804223,3.37277969,217.82,217.66,22.22267768]
[1731363804417,3.37277969,217.81,217.66,22.22267768]
[1731363804618,3.37277969,217.8,217.66,22.22267768]
[1731363804928,23.776884,217.83,217.66,22.22267768]
[1731363804929,3.37277969,217.79,217.66,22.22267768]
[1731363805117,3.37277969,217.78,217.66,22.22267768]
[1731363805319,3.37277969,217.77,217.66,22.22267768]
[1731363805519,23.776884,217.81,217.66,22.22267768]
[1731363805723,3.37230063,217.8,217.66,22.22267768]
[1731363805933,3.37230063,217.79,217.67,20.0]
[1731363806113,22.6568,217.87,217.73,22.22267768]
[1731363806303,3.37243009,217.86,217.71,22.22267768]
[1731363806507,3.37243009,217.85,217.68,20.0]
[1731363806711,3.37243009,217.84,217.68,20.0]
[1731363807013,3.37243009,217.83,217.68,20.0]
[1731363807211,3.37243009,217.82,217.68,20.0]
[1731363807408,3.37243009,217.81,217.67,22.22267768]
[1731363807630,3.37243009,217.8,217.68,20.0]
[1731363807829,3.37243009,217.79,217.68,20.0]
[1731363808014,3.37243009,217.78,217.68,20.0]
[1731363808211,3.37243009,217.77,217.68,20.0]
[1731363808424,23.776884,217.82,217.68,20.0]
[1731363808616,3.37235386,217.81,217.68,20.0]
[1731363808832,3.37235386,217.8,217.74,22.22267768]
[1731363809036,3.37235386,217.79,217.75,20.0]
[1731363809212,22.6568,217.87,217.75,20.0]
[1731363809413,3.3726552,217.86,217.75,20.0]
[1731363809620,3.3726552,217.85,217.73,20.0]
[1731363809827,3.3726552,217.84,217.73,20.0]
[1731363810107,3.3726552,217.83,217.73,20.0]
[1731363810309,3.3726552,217.82,217.73,20.0]
[1731363810527,3.3726552,217.81,217.73,20.0]
[1731363810715,22.6568,217.87,217.73,14.344023]
[1731363810910,3.37297785,217.86,217.73,14.344023]
[1731363811137,3.37297785,217.85,217.74,22.22267768]
[1731363811449,3.37297785,217.84,217.74,22.22267768]
[1731363811634,3.37297785,217.83,217.74,22.22267768]
[1731363811936,3.37297785,217.82,217.74,22.22267768]
[1731363812134,3.37297785,217.81,217.74,22.22267768]
[1731363812310,22.6568,217.87,217.74,22.22267768]
[1731363812511,3.37445782,217.86,217.74,22.22267768]
[1731363812831,3.37445782,217.85,217.75,20.0]
[1731363813125,3.37445782,217.84,217.75,20.0]
[1731363813333,3.37445782,217.83,217.75,20.0]
[1731363813715,3.37445782,217.82,217.75,20.0]
[1731363813914,22.6568,217.87,217.75,20.0]
[1731363814108,3.37455961,217.86,217.75,20.0]
[1731363814314,22.6568,217.87,217.75,20.0]
[1731363814315,3.37455961,217.85,217.75,20.0]
[1731363814510,3.37455961,217.84,217.73,20.0]
[1731363814727,22.6568,217.87,217.75,20.0]
[1731363814936,3.37474315,217.86,217.75,20.0]
[1731363815111,3.37474315,217.85,217.75,20.0]
[1731363815317,3.37474315,217.84,217.75,20.0]
[1731363815530,3.37474315,217.83,217.75,20.0]
[1731363815732,3.37474315,217.82,217.68,22.22267768]
[1731363816028,3.37474315,217.81,217.66,22.22267768]
[1731363816213,3.37474315,217.8,217.66,22.22267768]
[1731363816416,3.37474315,217.79,217.66,22.22267768]
[1731363816623,3.37474315,217.78,217.64,22.22267768]
[1731363816821,3.37474315,217.77,217.64,44.67582971]
[1731363817027,3.37474315,217.76,217.65,22.22267768]
[1731363817233,1.1479821,217.82,217.64,22.45315203]
[1731363817435,3.37387526,217.81,217.65,22.22267768]
[1731363817735,4.52185024,217.8,217.65,22.22267768]
[1731363817917,3.37387526,217.79,217.65,22.22267768]
[1731363818306,3.37387526,217.81,217.65,22.22267768]
[1731363818511,4.52191494,217.8,217.65,22.22267768]
[1731363818716,16.0038,217.78,217.66,20.0]
[1731363818962,3.37387526,217.77,217.66,20.0]
[1731363819128,3.37387526,217.76,217.66,20.0]
[1731363819426,16.0038,217.78,217.66,20.0]
[1731363819639,6.3201,217.76,217.54,22.60728436]
[1731363819844,4.52070806,217.75,217.62,22.68539459]
[1731363820017,3.37244521,217.74,217.55,22.75494131]
[1731363820218,3.37244521,217.74,217.61,22.22267768]
[1731363820431,3.37244521,217.74,217.57,22.36885798]
[1731363820631,3.37244521,217.74,217.54,6.15715322]
[1731363820632,3.37244521,217.74,217.61,22.22267768]
[1731363821235,3.37244521,217.74,217.62,20.0]
[1731363821436,16.0927,217.73,217.54,6.15715322]
[1731363821622,3.37244521,217.72,217.57,22.22267768]
[1731363821829,4.52092894,217.71,217.57,22.22267768]
[1731363822137,3.37244521,217.7,217.57,22.22267768]
[1731363822527,3.37244521,217.69,217.49,6.15715322]
[1731363822739,1.14846558,217.72,217.58,20.0]
[1731363822936,3.36707107,217.71,217.58,20.0]
[1731363823140,1.14846558,217.72,217.58,20.0]
[1731363823315,3.3669031,217.71,217.58,20.0]
[1731363823514,4.51536845,217.7,217.58,20.0]
[1731363823741,16.0927,217.73,217.58,20.0]
[1731363823742,1.14851566,217.72,217.58,20.0]
[1731363823943,3.36518753,217.71,217.58,20.0]
[1731363824141,3.36518753,217.7,217.5,20.0]
[1731363824319,16.0927,217.73,217.59,20.0]
[1731363824515,3.3638777,217.72,217.59,20.0]
[1731363824733,3.3638777,217.71,217.59,20.0]
[1731363824942,16.0927,217.73,217.59,20.0]
[1731363825141,3.36392561,217.72,217.59,20.0]
[1731363825321,3.36392561,217.71,217.59,20.0]
[1731363825531,16.0927,217.73,217.59,20.0]
[1731363825732,3.36367338,217.72,217.59,20.0]
[1731363825956,16.0927,217.73,217.61,22.22267768]
[1731363826240,16.0927,217.73,217.59,20.0]
[1731363826471,16.0927,217.73,217.62,20.0]
[1731363829735,16.0927,217.73,217.59,22.22267768]
[1731363830128,16.0927,217.73,217.6,20.0]
[1731363830527,16.0927,217.73,217.6,22.22267768]
[1731363830754,16.0927,217.73,217.54,20.0]
[1731363830934,16.0927,217.73,217.61,20.0]
[1731363832236,16.0927,217.73,217.58,13.90199347]
[1731363832636,16.0927,217.73,217.59,13.90199347]
[1731363832822,16.0927,217.73,217.6,20.0]
[1731363833024,1.14828216,217.72,217.51,6.15715322]
[1731363833229,1.14828216,217.72,217.53,13.90199347]
[1731363834531,1.14828216,217.72,217.54,20.0]
[1731363834841,6.5337,217.7,217.54,20.0]
[1731363835049,1.14869956,217.69,217.54,20.0]
[1731363835254,1.14869956,217.69,217.53,13.90199347]
[1731363835748,3.36233428,217.68,217.53,13.90199347]
[1731363835942,4.51098779,217.67,217.53,13.90199347]
[1731363836146,22.8227,217.66,217.47,22.02786737]
[1731363836450,22.8227,217.66,217.52,13.90199347]
[1731363837038,4.50804458,217.65,217.46,6.15715322]
[1731363837242,16.2846,217.63,217.44,13.90199347]
[1731363837444,1.14905926,217.62,217.44,13.90199347]
[1731363837649,1.14905926,217.62,217.46,13.90199347]
[1731363838033,3.3580434,217.61,217.48,13.90199347]
[1731363838239,1.14888687,217.6,217.46,13.90199347]
[1731363838446,1.14888687,217.62,217.46,13.90199347]
[1731363838768,1.14888687,217.62,217.47,20.0]
[1731363840639,1.14888687,217.62,217.48,13.90199347]
[1731363840840,6.5893,217.61,217.45,20.0]
[1731363841344,1.14901798,217.6,217.47,20.0]
[1731363842137,0.1,217.57,217.36,0.2]
[1731363842345,0.1,217.57,217.34,5.81770877]
[1731363842346,23.776884,217.55,217.34,13.90199347]
[1731363842557,1.14953705,217.54,217.34,13.90199347]
[1731363843759,1.14953705,217.54,217.37,20.0]
[1731363843940,1.14940225,217.53,217.37,20.0]
[1731363844134,1.14941037,217.55,217.39,20.0]
[1731363844951,22.1041,217.56,217.43,20.0]
[1731363845460,1.14927674,217.55,217.43,20.0]
[1731363845650,22.1041,217.56,217.41,20.0]
[1731363846754,1.14923444,217.55,217.41,20.0]
[1731363847145,22.1041,217.56,217.41,20.0]
[1731363847351,22.1041,217.56,217.44,13.90199347]
[1731363847554,22.1041,217.56,217.38,0.1]
[1731363847555,22.1041,217.56,217.46,13.90199347]
[1731363847859,22.1041,217.56,217.47,20.0]
[1731363848034,22.1041,217.56,217.48,13.90199347]
[1731363848236,22.1041,217.56,217.53,20.0]
[1731363848636,22.1041,217.56,217.54,13.90199347]
[1731363848854,22.6458,217.76,217.55,20.0]
[1731363849062,4.4906162,217.75,217.55,20.0]
[1731363849237,3.34206598,217.74,217.55,20.0]
[1731363849439,1.14852194,217.73,217.55,20.0]
[1731363849757,1.14852194,217.73,217.56,13.90199347]
[1731363849959,1.14843673,217.75,217.57,20.0]
[1731363850162,22.6458,217.76,217.5,0.1]
[1731363850163,22.6458,217.76,217.6,13.90199347]
[1731363850455,22.6458,217.76,217.62,13.90199347]
[1731363850645,22.6458,217.76,217.65,20.0]
[1731363852041,22.6458,217.76,217.67,20.0]
[1731363852250,22.6458,217.76,217.68,13.90199347]
[1731363852442,21.1458,217.76,217.69,20.0]
[1731363853039,15.0154,217.83,217.71,20.0]
[1731363853639,15.0154,217.83,217.62,0.2]
[1731363853640,15.0154,217.83,217.72,22.2271231]
[1731363853962,15.0154,217.83,217.73,20.0]
[1731363854763,15.0154,217.83,217.75,20.0]
[1731363855441,21.1778,217.83,217.75,20.0]
[1731363859344,21.1778,217.83,217.77,22.2271231]
[1731363859556,21.1778,217.83,217.78,20.0]
[1731363860653,21.1778,217.83,217.76,20.0]
[1731363860855,21.1778,217.83,217.71,42.2271231]
[1731363861053,21.1778,217.83,217.73,22.2271231]
[1731363861361,21.1778,217.83,217.74,20.0]
[1731363862173,20.75623,217.83,217.74,20.0]
[1731363865469,20.75623,217.83,217.75,22.2271231]
[1731363865769,20.75623,217.83,217.76,20.0]
[1731363867648,20.75623,217.83,217.7,5.54819017]
[1731363867847,20.75623,217.83,217.72,22.2271231]
[1731363868768,20.75623,217.83,217.74,22.2271231]
[1731363868973,20.75623,217.83,217.75,20.0]
[1731363869345,20.75623,217.83,217.73,20.0]
[1731363869857,20.75623,217.83,217.74,22.2271231]
[1731363870064,20.75623,217.83,217.75,20.0]
[1731363871653,20.75623,217.83,217.73,20.0]
[1731363872352,20.75623,217.83,217.64,5.54819017]
[1731363872353,20.75623,217.83,217.69,20.0]
[1731363872552,1.14781673,217.82,217.69,20.0]
[1731363873070,20.75623,217.83,217.69,20.0]
[1731363873572,1.147852,217.82,217.69,20.0]
[1731363874472,20.75623,217.83,217.74,22.2271231]
[1731363874773,20.75623,217.83,217.77,20.0]
[1731363875568,20.75623,217.83,217.75,20.0]
[1731363878171,20.75623,217.83,217.69,0.2]
[1731363878374,20.75623,217.83,217.71,20.0]
[1731363878571,20.75623,217.83,217.73,20.0]
[1731363880986,20.75623,217.83,217.72,13.88442513]
[1731363880987,20.75623,217.83,217.79,20.0]
[1731363881156,20.75623,217.83,217.81,20.0]
[1731363881471,20.75623,217.83,217.79,20.0]
[1731363881855,20.75623,217.83,217.76,13.88442513]
[1731363881856,20.75623,217.83,217.77,20.0]
[1731363882568,20.75623,217.83,217.72,20.0]
[1731363882754,20.75623,217.83,217.77,13.88442513]
[1731363882953,20.75623,217.83,217.78,20.0]
[1731363885269,20.75623,217.83,217.76,20.0]
[1731363891062,20.75623,217.83,217.78,20.0]
[1731363891476,20.75623,217.83,217.69,14.08442513]
[1731363891477,20.75623,217.83,217.8,20.0]
[1731363891781,23.0501,217.98,217.82,13.88442513]
[1731363892000,23.0501,217.98,217.93,13.88442513]
[1731363892165,23.0501,217.98,217.83,5.39193987]
[1731363892367,16.5848,217.98,217.97,13.88442513]
[1731363892567,6.2827,218.04,217.97,13.88442513]
[1731363892766,16.1059,218.08,217.97,5.39193987]
[1731363893062,16.1059,218.08,218.04,13.88442513]
[1731363893266,22.3886,218.22,218.06,13.88442513]
[1731363893470,3.37949188,218.21,218.11,13.88442513]
[1731363893684,22.3886,218.22,218.12,5.9321621]
[1731363894008,22.3886,218.22,218.15,13.88442513]
[1731363894294,22.3886,218.22,218.06,0.1]
[1731363894587,22.3886,218.22,218.11,13.88442513]
[1731363896868,22.3886,218.22,218.13,13.88442513]
[1731363897068,22.3886,218.22,218.15,13.88442513]
[1731363897874,22.3886,218.22,218.17,13.88442513]
[1731363898972,22.2305,218.34,218.19,13.88442513]
[1731363899173,1.14519842,218.33,218.19,13.88442513]
[1731363900076,22.2305,218.34,218.13,19.81658723]
[1731363900077,22.2305,218.34,218.21,13.88442513]
[1731363900890,22.2305,218.34,218.23,13.88442513]
[1731363901299,22.2305,218.34,218.21,13.88442513]
[1731363903084,22.2305,218.34,218.27,13.88442513]
[1731363903888,22.2305,218.34,218.29,13.88442513]
[1731363904093,6.0472,218.4,218.29,13.88442513]
[1731363904287,6.0472,218.4,218.31,13.88442513]
[1731363905203,6.0472,218.4,218.33,13.88442513]
[1731363905382,6.0472,218.4,218.35,13.88442513]
[1731363905578,6.0472,218.4,218.33,13.88442513]
[1731363905780,6.0472,218.4,218.27,5.59879988]
[1731363905781,6.0472,218.4,218.31,13.88442513]
[1731363906596,6.0472,218.4,218.27,0.2]
[1731363906785,6.0472,218.4,218.31,22.09733958]
[1731363907797,15.3524,218.41,218.39,22.09733958]
[1731363908000,6.5029,218.47,218.39,22.09733958]
[1731363908204,6.5029,218.47,218.37,22.09733958]
[1731363908384,6.5029,218.47,218.35,22.09733958]
[1731363908699,6.5029,218.47,218.32,0.2]
[1731363909030,6.5029,218.47,218.37,22.09733958]
[1731363909801,6.5029,218.47,218.32,0.1]
[1731363909976,6.5029,218.47,218.36,22.09733958]
[1731363910180,21.4794,218.54,218.36,22.09733958]
[1731363910379,21.4794,218.54,218.38,22.09733958]
[1731363910595,21.4794,218.54,218.34,0.1]
[1731363910898,21.4794,218.54,218.39,22.09733958]
[1731363912804,21.4794,218.54,218.4,20.0]
[1731363913505,21.4794,218.54,218.38,20.0]
[1731363913716,1.144071,218.53,218.38,20.0]
[1731363914013,21.4794,218.54,218.32,27.71387741]
[1731363914014,21.4794,218.54,218.39,22.09733958]
[1731363914190,21.4794,218.54,218.4,20.0]
[1731363914778,1.1441202,218.53,218.4,20.0]
[1731363915602,1.1441202,218.53,218.38,20.0]
[1731363915993,6.4867,218.52,218.25,0.1]
[1731363916302,0.1,218.17,217.92,22.09733958]
[1731363916529,0.1,218.13,217.83,22.09733958]
[1731363916689,0.1,218.08,217.77,18.326625]
[1731363917007,6.4867,218.03,217.75,22.09733958]
[1731363917210,1.14717181,218.02,217.75,22.09733958]
[1731363917411,1.14717181,218.02,217.75,0.1]
[1731363917587,1.14717181,218.02,217.79,22.09733958]
[1731363917781,1.14717181,218.02,217.77,0.1]
[1731363918196,1.14717181,218.02,217.79,0.1]
[1731363918396,6.4867,218.03,217.81,0.1]
[1731363918590,1.14680328,218.02,217.81,0.1]
[1731363919806,1.14680328,218.02,217.78,0.1]
[1731363920205,1.14680328,218.02,217.75,27.48]
[1731363920206,0.1,217.99,217.75,26.23]
[1731363920407,0.1,217.99,217.75,26.33]
[1731363921095,0.1,217.99,217.75,0.1]
[1731363921306,0.1,217.99,217.77,0.1]
[1731363921489,0.1,217.98,217.74,0.1]
[1731363921690,0.1,217.96,217.76,0.1]
[1731363921906,0.1,217.96,217.74,0.1]
[1731363922312,0.1,217.97,217.74,0.1]
[1731363922620,0.1,217.95,217.74,0.1]
[1731363923298,0.1,217.97,217.74,0.1]
[1731363923492,0.1,217.97,217.76,0.1]
[1731363923694,0.1,217.81,217.61,0.2]
[1731363924033,0.1,217.81,217.54,0.1]
[1731363924034,0.1,217.77,217.54,0.3]
[1731363924213,0.1,217.77,217.55,1.834553]
[1731363924512,0.1,217.79,217.6,0.1]
[1731363924892,0.1,217.79,217.55,2.034553]
[1731363925098,0.1,217.77,217.61,0.1]
[1731363925293,0.1,217.77,217.6,0.1]
[1731363925500,0.1,217.77,217.57,20.0]
[1731363925709,0.1,217.77,217.59,0.1]
[1731363925892,6.4998,217.8,217.59,0.3]
[1731363926094,0.1,217.79,217.59,0.3]
[1731363927008,0.1,217.79,217.59,0.2]
[1731363927417,6.4998,217.8,217.61,0.1]
[1731363928609,0.1,217.79,217.59,0.2]
[1731363929511,16.5043,217.78,217.6,0.1]